fUSD/lending_fUSD_20240222
["ID","MTS","AMOUNT","RATE_DAILY","PERIOD"]
[314824781,1708571451957,-500.0,0.00035616,2]
[314824782,1708571451968,-500.000001,0.00035616,2]
[314824783,1708571451977,-502.73038738,0.00035616,2]
[314824784,1708571451987,-500.0,0.00035616,2]
[314824785,1708571451997,-500.0,0.00035616,2]
[314824786,1708571452008,-506.30573806,0.00035616,2]
[314824787,1708571452018,-825.66,0.00035616,2]
[314824788,1708571452027,-500.0,0.00035616,2]
[314824789,1708571452037,-634.35,0.00035616,2]
[314824790,1708571452046,-500.0,0.00035616,2]
[314824791,1708571452056,-612.06,0.00035616,2]
[314824792,1708571452066,-514.16359728,0.00035616,2]
[314824793,1708571452075,-500.0,0.00035616,2]
[314824794,1708571452085,-500.0,0.00035616,2]
[314824795,1708571452094,-500.0,0.00035616,2]
[314824796,1708571452104,-500.0,0.00035616,2]
[314824797,1708571452114,-1000.0,0.00035616,7]
[314824798,1708571452124,-500.0,0.00035616,2]
[314824799,1708571452133,-540.93728636,0.00035616,2]
[314824800,1708571452143,-1557.65,0.00035616,2]
[314824801,1708571452154,-510.8563181,0.00035616,2]
[314824802,1708571452164,-502.98815346,0.00035616,2]
[314824803,1708571452173,-500.0,0.00035616,2]
[314824804,1708571452182,-500.0,0.00035616,2]
[314824805,1708571452192,-500.0,0.00035616,2]
[314824806,1708571452201,-500.0,0.00035616,2]
[314824807,1708571452211,-500.0,0.00035616,2]
[314824808,1708571452221,-502.05055045,0.00035616,2]
[314824809,1708571452232,-500.0,0.00035616,2]
[314824810,1708571452242,-500.0,0.00035616,2]
[314824811,1708571452253,-861.97,0.00035616,2]
[314824812,1708571452263,-500.0,0.00035616,2]
[314824813,1708571452273,-500.0,0.00035616,2]
[314824814,1708571452283,-500.0,0.00035616,2]
[314824815,1708571452292,-500.0,0.00035616,2]
[314824816,1708571452302,-500.0,0.00035616,2]
[314824817,1708571452312,-398.88182481,0.00035616,2]
[314824818,1708571452322,-1000.0,0.00035616,7]
[314824819,1708571452332,-500.0,0.00035616,2]
[314824820,1708571452341,-500.0,0.00035616,2]
[314824821,1708571452352,-549.38,0.00035616,2]
[314824822,1708571452362,-500.0,0.00035616,2]
[314824823,1708571452372,-600.16630431,0.00035616,2]
[314824824,1708571452382,-500.0,0.00035616,2]
[314824825,1708571452391,-500.0,0.00035616,2]
[314824826,1708571452401,-500.0,0.00035616,2]
[314824827,1708571452411,-505.69573042,0.00035616,2]
[314824828,1708571452421,-500.0,0.00035616,2]
[314824829,1708571452430,-619.07,0.00035616,2]
[314824830,1708571452440,-500.0,0.00035616,2]
[314824831,1708571452449,-500.0,0.00035616,2]
[314824832,1708571452459,-591.29859165,0.00035616,2]
[314824833,1708571452469,-500.0,0.00035616,2]
[314824834,1708571452479,-500.0,0.00035616,2]
[314824835,1708571452489,-500.0,0.00035616,2]
[314824836,1708571452498,-500.0,0.00035616,2]
[314824837,1708571452509,-848.14,0.00035616,2]
[314824838,1708571452518,-500.0,0.00035616,2]
[314824839,1708571452528,-500.0,0.00035616,2]
[314824840,1708571452537,-914.66,0.00035616,2]
[314824841,1708571452547,-500.0,0.00035616,2]
[314824842,1708571452557,-508.97625946,0.00035616,2]
[314824843,1708571452566,-500.0,0.00035616,2]
[314824844,1708571452576,-500.0,0.00035616,2]
[314824845,1708571452586,-500.0,0.00035616,2]
[314824846,1708571452596,-500.0,0.00035616,2]
[314824847,1708571452609,-500.0,0.00035616,2]
[314824848,1708571452618,-500.0,0.00035616,2]
[314824849,1708571452628,-503.90927117,0.00035616,2]
[314824850,1708571452637,-708.05,0.00035616,2]
[314824851,1708571452647,-500.0,0.00035616,2]
[314824852,1708571452656,-500.0,0.00035616,2]
[314824853,1708571452666,-500.0,0.00035616,2]
[314824854,1708571452675,-500.0,0.00035616,2]
[314824855,1708571452685,-500.0,0.00035616,2]
[314824856,1708571452694,-500.0,0.00035616,2]
[314824857,1708571452704,-910.54,0.00035616,2]
[314824858,1708571452713,-500.0,0.00035616,2]
[314824859,1708571452723,-500.0,0.00035616,2]
[314824860,1708571452732,-1023.59,0.00035616,2]
[314824861,1708571452742,-500.0,0.00035616,2]
[314824862,1708571452751,-500.0,0.00035616,2]
[314824863,1708571452770,-500.0,0.00035616,2]
[314824864,1708571452783,-793.78,0.00035616,2]
[314824865,1708571452793,-500.0,0.00035616,2]
[314824866,1708571452802,-500.0,0.00035616,2]
[314824867,1708571452812,-500.0,0.00035616,2]
[314824868,1708571452822,-500.0,0.00035616,2]
[314824869,1708571452832,-500.0,0.00035616,2]
[314824870,1708571452841,-501.78904251,0.00035616,2]
[314824871,1708571452851,-500.0,0.00035616,2]
[314824872,1708571452860,-748.23,0.00035616,2]
[314824873,1708571452870,-527.92364051,0.00035616,2]
[314824874,1708571452880,-500.0,0.00035616,2]
[314824875,1708571452890,-500.0,0.00035616,2]
[314824876,1708571452900,-500.0,0.00035616,2]
[314824877,1708571452910,-500.0,0.00035616,2]
[314824878,1708571452919,-517.8305273,0.00035616,2]
[314824879,1708571452929,-500.0,0.00035616,2]
[314824880,1708571452939,-500.0,0.00035616,2]
[314824881,1708571452948,-510.68997406,0.00035616,2]
[314824882,1708571452958,-500.0,0.00035616,2]
[314824883,1708571452968,-500.0,0.00035616,2]
[314824884,1708571452978,-500.0,0.00035616,2]
[314824885,1708571452987,-503.0975203,0.00035616,2]
[314824886,1708571452997,-500.0,0.00035616,2]
[314824887,1708571453007,-500.0,0.00035616,2]
[314824888,1708571453016,-500.0,0.00035616,2]
[314824889,1708571453025,-515.93,0.00035616,2]
[314824890,1708571453035,-548.7,0.00035616,2]
[314824891,1708571453044,-500.0,0.00035616,2]
[314824892,1708571453054,-521.6,0.00035616,2]
[314824893,1708571453064,-1492.93,0.00035616,2]
[314824894,1708571453073,-500.0,0.00035616,2]
[314824895,1708571453083,-500.0,0.00035616,2]
[314824896,1708571453093,-500.0,0.00035616,2]
[314824897,1708571453103,-500.0,0.00035616,2]
[314824898,1708571453113,-500.0,0.00035616,2]
[314824899,1708571453123,-500.0,0.00035616,2]
[314824900,1708571453133,-509.29648016,0.00035616,2]
[314824901,1708571453143,-500.0,0.00035616,2]
[314824902,1708571453154,-9527.74980193,0.00035616,3]
[314824903,1708571453163,-570.87,0.00035616,2]
[314824904,1708571453173,-520.86613259,0.00035616,2]
[314824905,1708571453183,-527.84,0.00035616,2]
[314824906,1708571453193,-500.0,0.00035616,2]
[314824907,1708571453203,-506.7229604,0.00035616,2]
[314824908,1708571453213,-500.0,0.00035616,2]
[314824909,1708571453223,-550.65,0.00035616,2]
[314824910,1708571453233,-500.0,0.00035616,2]
[314824911,1708571453242,-500.0,0.00035616,2]
[314824912,1708571453253,-500.0,0.00035616,2]
[314824913,1708571453263,-500.0,0.00035616,2]
[314824914,1708571453273,-500.0,0.00035616,2]
[314824915,1708571453283,-500.0,0.00035616,2]
[314824916,1708571453292,-510.86916188,0.00035616,2]
[314824917,1708571453302,-500.0,0.00035616,2]
[314824918,1708571453312,-500.0,0.00035616,2]
[314824919,1708571453322,-500.0,0.00035616,2]
[314824920,1708571453332,-500.0,0.00035616,2]
[314824921,1708571453342,-500.0,0.00035616,2]
[314824922,1708571453352,-500.0,0.00035616,2]
[314824923,1708571453364,-500.0,0.00035616,2]
[314824924,1708571453373,-500.0,0.00035616,2]
[314824925,1708571453383,-500.0,0.00035616,2]
[314824926,1708571453393,-500.0,0.00035616,2]
[314824927,1708571453403,-505.10433456,0.00035616,2]
[314824928,1708571453414,-998.09,0.00035616,2]
[314824929,1708571453423,-500.0,0.00035616,2]
[314824930,1708571453433,-1522.9,0.00035616,2]
[314824931,1708571453444,-500.0,0.00035616,2]
[314824932,1708571453458,-500.0,0.00035616,2]
[314824933,1708571453468,-500.0,0.00035616,2]
[314824934,1708571453478,-500.0,0.00035616,2]
[314824935,1708571453489,-500.0,0.00035616,2]
[314824936,1708571453499,-500.0,0.00035616,2]
[314824937,1708571453510,-755.57,0.00035616,2]
[314824938,1708571453521,-500.0,0.00035616,2]
[314824939,1708571453531,-503.54789715,0.00035616,2]
[314824940,1708571453541,-500.0,0.00035616,2]
[314824941,1708571453551,-500.0,0.00035616,2]
[314824942,1708571453561,-500.0,0.00035616,2]
[314824943,1708571453571,-488.04757882,0.00035616,2]
[314824944,1708571453581,-506.14159084,0.00035616,2]
[314824945,1708571453591,-500.0,0.00035616,2]
[314824946,1708571453601,-712.79,0.00035616,2]
[314824947,1708571453615,-506.54319512,0.00035616,2]
[314824948,1708571453625,-500.0,0.00035616,2]
[314824949,1708571453635,-500.0,0.00035616,2]
[314824950,1708571453647,-500.0,0.00035616,2]
[314824951,1708571453657,-500.0,0.00035616,2]
[314824952,1708571453666,-500.0,0.00035616,2]
[314824953,1708571453677,-500.0,0.00035616,2]
[314824954,1708571453687,-537.75,0.00035616,2]
[314824955,1708571453698,-500.0,0.00035616,2]
[314824956,1708571453707,-500.0,0.00035616,2]
[314824957,1708571453717,-509.52148808,0.00035616,2]
[314824958,1708571453727,-500.0,0.00035616,2]
[314824959,1708571453737,-500.0,0.00035616,2]
[314824960,1708571453746,-660.33,0.00035616,2]
[314824961,1708571453757,-500.0,0.00035616,2]
[314824962,1708571453766,-514.3,0.00035616,2]
[314824963,1708571453776,-871.1,0.00035616,2]
[314824964,1708571453785,-859.65,0.00035616,2]
[314824965,1708571453795,-500.0,0.00035616,2]
[314824966,1708571453804,-500.0,0.00035616,2]
[314824967,1708571453814,-500.0,0.00035616,2]
[314824968,1708571453823,-500.0,0.00035616,2]
[314824969,1708571453833,-500.0,0.00035616,2]
[314824970,1708571453842,-500.0,0.00035616,2]
[314824971,1708571453852,-500.0,0.00035616,2]
[314824972,1708571453861,-500.0,0.00035616,2]
[314824973,1708571453871,-500.0,0.00035616,2]
[314824974,1708571453880,-500.0,0.00035616,2]
[314824975,1708571453889,-514.2488062,0.00035616,2]
[314824976,1708571453899,-500.0,0.00035616,2]
[314824977,1708571453908,-500.0,0.00035616,2]
[314824978,1708571453917,-1030.56,0.00035616,2]
[314824979,1708571453927,-500.0,0.00035616,2]
[314824980,1708571453937,-794.87,0.00035616,2]
[314824981,1708571453946,-500.0,0.00035616,2]
[314824982,1708571453956,-840.11,0.00035616,2]
[314824983,1708571453965,-500.0,0.00035616,2]
[314824984,1708571453974,-500.0,0.00035616,2]
[314824985,1708571453985,-500.0,0.00035616,2]
[314824986,1708571453995,-711.79,0.00035616,2]
[314824987,1708571454004,-500.0,0.00035616,2]
[314824988,1708571454013,-500.0,0.00035616,2]
[314824989,1708571454023,-500.0,0.00035616,2]
[314824990,1708571454033,-500.0,0.00035616,2]
[314824991,1708571454043,-2000.0,0.00035616,2]
[314824992,1708571454053,-500.0,0.00035616,2]
[314824993,1708571454063,-506.82189468,0.00035616,2]
[314824994,1708571454072,-500.0,0.00035616,2]
[314824995,1708571454082,-500.0,0.00035616,2]
[314824996,1708571454091,-500.0,0.00035616,2]
[314824997,1708571454101,-500.0,0.00035616,2]
[314824998,1708571454110,-500.0,0.00035616,2]
[314824999,1708571454120,-500.0,0.00035616,2]
[314825000,1708571454129,-500.0,0.00035616,2]
[314825001,1708571454139,-200.0,0.00035616,2]
[314825002,1708571454148,-1085.16,0.00035616,2]
[314825003,1708571454157,-500.0,0.00035616,2]
[314825004,1708571454170,-930.24,0.00035616,2]
[314825005,1708571454181,-503.09180524,0.00035616,2]
[314825006,1708571454191,-509.97483784,0.00035616,2]
[314825007,1708571454200,-1229.4,0.00035616,2]
[314825008,1708571454210,-500.0,0.00035616,2]
[314825009,1708571454219,-500.0,0.00035616,2]
[314825010,1708571454229,-500.0,0.00035616,2]
[314825011,1708571454238,-500.0,0.00035616,2]
[314825012,1708571454248,-641.26,0.00035616,2]
[314825013,1708571454258,-1254.24,0.00035616,2]
[314825014,1708571454267,-500.0,0.00035616,2]
[314825015,1708571454277,-500.0,0.00035616,2]
[314825016,1708571454286,-500.0,0.00035616,2]
[314825017,1708571454295,-500.0,0.00035616,2]
[314825018,1708571454305,-500.0,0.00035616,2]
[314825019,1708571454315,-503.27344842,0.00035616,2]
[314825020,1708571454324,-708.18,0.00035616,2]
[314825021,1708571454334,-500.0,0.00035616,2]
[314825022,1708571454681,-500.0,0.00035616,2]
[314825023,1708571454691,-675.52,0.00035616,2]
[314825024,1708571454701,-663.36,0.00035616,2]
[314825025,1708571454711,-500.0,0.00035616,2]
[314825026,1708571454720,-513.38137677,0.00035616,2]
[314825027,1708571454730,-1285.49,0.00035616,2]
[314825028,1708571454740,-500.0,0.00035616,2]
[314825029,1708571454749,-533.72,0.00035616,2]
[314825030,1708571454758,-500.0,0.00035616,2]
[314825031,1708571454767,-500.0,0.00035616,2]
[314825032,1708571454777,-500.0,0.00035616,2]
[314825033,1708571454786,-500.0,0.00035616,2]
[314825034,1708571454795,-500.0,0.00035616,2]
[314825035,1708571454804,-500.0,0.00035616,2]
[314825036,1708571454813,-500.0,0.00035616,2]
[314825037,1708571454822,-500.0,0.00035616,2]
[314825038,1708571454832,-500.0,0.00035616,2]
[314825039,1708571454841,-500.0,0.00035616,2]
[314825040,1708571454850,-500.0,0.00035616,2]
[314825041,1708571454860,-507.35268548,0.00035616,2]
[314825042,1708571454869,-972.67,0.00035616,2]
[314825043,1708571454879,-1033.35,0.00035616,2]
[314825044,1708571454889,-518.10500365,0.00035616,2]
[314825045,1708571454898,-686.87,0.00035616,2]
[314825046,1708571454908,-500.0,0.00035616,2]
[314825047,1708571454918,-503.10859555,0.00035616,2]
[314825048,1708571454927,-500.0,0.00035616,2]
[314825049,1708571454936,-500.0,0.00035616,2]
[314825050,1708571454945,-500.0,0.00035616,2]
[314825051,1708571454955,-500.0,0.00035616,2]
[314825052,1708571454965,-500.0,0.00035616,2]
[314825053,1708571454974,-489.17150158,0.00035616,2]
[314825054,1708571454983,-690.5,0.00035616,2]
[314825055,1708571454993,-500.0,0.00035616,2]
[314825056,1708571455002,-506.1999124,0.00035616,2]
[314825057,1708571455012,-1210.72,0.00035616,2]
[314825058,1708571455021,-500.0,0.00035616,2]
[314825059,1708571455030,-500.0,0.00035616,2]
[314825060,1708571455039,-500.0,0.00035616,2]
[314825061,1708571455048,-500.0,0.00035616,2]
[314825062,1708571455057,-500.0,0.00035616,2]
[314825063,1708571455066,-500.0,0.00035616,2]
[314825064,1708571455075,-500.0,0.00035616,2]
[314825065,1708571455083,-500.0,0.00035616,2]
[314825066,1708571455092,-500.0,0.00035616,2]
[314825067,1708571455102,-592.37335006,0.00035616,2]
[314825068,1708571455112,-500.0,0.00035616,2]
[314825069,1708571455121,-500.0,0.00035616,2]
[314825070,1708571455130,-500.0,0.00035616,2]
[314825071,1708571455139,-500.0,0.00035616,2]
[314825072,1708571455149,-500.0,0.00035616,2]
[314825073,1708571455158,-500.0,0.00035616,2]
[314825074,1708571455167,-492.78660059,0.00035616,2]
[314825075,1708571455177,-735.98,0.00035616,2]
[314825076,1708571455186,-500.0,0.00035616,2]
[314825077,1708571455195,-500.0,0.00035616,2]
[314825078,1708571455204,-500.0,0.00035616,2]
[314825079,1708571455214,-1505.51,0.00035616,2]
[314825080,1708571455223,-500.0,0.00035616,2]
[314825081,1708571455232,-500.0,0.00035616,14]
[314825082,1708571455242,-500.0,0.00035616,2]
[314825083,1708571455251,-500.0,0.00035616,2]
[314825084,1708571455261,-614.0,0.00035616,2]
[314825085,1708571455270,-500.0,0.00035616,2]
[314825086,1708571455279,-1393.88,0.00035616,2]
[314825087,1708571455288,-500.0,0.00035616,2]
[314825088,1708571455297,-500.0,0.00035616,2]
[314825089,1708571455307,-500.0,0.00035616,2]
[314825090,1708571455316,-500.0,0.00035616,2]
[314825091,1708571455325,-500.0,0.00035616,2]
[314825092,1708571455335,-500.0,0.00035616,2]
[314825093,1708571455354,-500.0,0.00035616,2]
[314825094,1708571455364,-554.06794135,0.00035616,2]
[314825095,1708571455373,-500.0,0.00035616,2]
[314825096,1708571455382,-500.0,0.00035616,2]
[314825097,1708571455392,-500.0,0.00035616,2]
[314825098,1708571455401,-356.72759068,0.00035616,2]
[314825099,1708571455411,-508.25570105,0.00035616,2]
[314825100,1708571455420,-602.51,0.00035616,2]
[314825101,1708571455431,-880.15,0.00035616,2]
[314825102,1708571455440,-503.38336846,0.00035616,2]
[314825103,1708571455450,-500.0,0.00035616,2]
[314825104,1708571455459,-500.0,0.00035616,2]
[314825105,1708571455469,-500.0,0.00035616,2]
[314825106,1708571455479,-970.4,0.00035616,2]
[314825107,1708571455489,-500.0,0.00035616,2]
[314825108,1708571455498,-515.02,0.00035616,2]
[314825109,1708571455508,-500.0,0.00035616,2]
[314825110,1708571455518,-500.0,0.00035616,2]
[314825111,1708571455527,-500.0,0.00035616,2]
[314825112,1708571455536,-500.0,0.00035616,2]
[314825113,1708571455546,-500.0,0.00035616,2]
[314825114,1708571455556,-500.0,0.00035616,2]
[314825115,1708571455565,-500.0,0.00035616,2]
[314825116,1708571455574,-500.0,0.00035616,2]
[314825117,1708571455584,-506.82024109,0.00035616,2]
[314825118,1708571455594,-3077.14,0.00035616,2]
[314825119,1708571455605,-1740.36,0.00035616,2]
[314825120,1708571455616,-501.28928603,0.00035616,2]
[314825121,1708571455626,-500.0,0.00035616,2]
[314825122,1708571455635,-500.0,0.00035616,2]
[314825123,1708571455645,-504.09397833,0.00035616,2]
[314825124,1708571455654,-533.52,0.00035616,2]
[314825125,1708571455664,-500.0,0.00035616,2]
[314825126,1708571455673,-500.0,0.00035616,2]
[314825127,1708571455684,-609.83,0.00035616,2]
[314825128,1708571455693,-500.0,0.00035616,2]
[314825129,1708571455702,-500.0,0.00035616,2]
[314825130,1708571455711,-505.49208173,0.00035616,2]
[314825131,1708571455721,-502.16226662,0.00035616,2]
[314825132,1708571455730,-500.0,0.00035616,2]
[314825133,1708571455739,-500.0,0.00035616,2]
[314825134,1708571455748,-500.0,0.00035616,2]
[314825135,1708571455758,-500.0,0.00035616,2]
[314825136,1708571455767,-500.0,0.00035616,2]
[314825137,1708571455777,-827.66,0.00035616,2]
[314825138,1708571455786,-500.0,0.00035616,2]
[314825139,1708571455795,-500.0,0.00035616,2]
[314825140,1708571455805,-1488.99,0.00035616,2]
[314825141,1708571455814,-2318.43,0.00035616,2]
[314825142,1708571455823,-2948.11,0.00035616,2]
[314825143,1708571455833,-500.0,0.00035616,2]
[314825144,1708571455842,-500.0,0.00035616,2]
[314825145,1708571455852,-500.0,0.00035616,2]
[314825146,1708571455861,-500.0,0.00035616,2]
[314825147,1708571455871,-500.0,0.00035616,2]
[314825148,1708571455880,-500.0,0.00035616,2]
[314825149,1708571455890,-500.0,0.00035616,2]
[314825150,1708571455899,-500.0,0.00035616,2]
[314825151,1708571455909,-2491.28,0.00035616,2]
[314825152,1708571455919,-500.0,0.00035616,2]
[314825153,1708571455928,-500.0,0.00035616,2]
[314825154,1708571455937,-500.0,0.00035616,2]
[314825155,1708571455947,-500.0,0.00035616,2]
[314825156,1708571455956,-500.0,0.00035616,2]
[314825157,1708571455965,-508.12858644,0.00035616,2]
[314825158,1708571455975,-500.0,0.00035616,2]
[314825159,1708571455984,-511.26864956,0.00035616,2]
[314825160,1708571455993,-500.0,0.00035616,2]
[314825161,1708571456003,-500.0,0.00035616,2]
[314825162,1708571456013,-1249.14,0.00035616,2]
[314825163,1708571456022,-500.0,0.00035616,2]
[314825164,1708571456031,-500.0,0.00035616,2]
[314825165,1708571456041,-500.0,0.00035616,2]
[314825166,1708571456050,-500.0,0.00035616,2]
[314825167,1708571456059,-500.0,0.00035616,2]
[314825168,1708571456068,-500.0,0.00035616,2]
[314825169,1708571456078,-761.14,0.00035616,2]
[314825170,1708571456087,-8712.42,0.00035616,2]
[314825171,1708571456096,-5593.38,0.00035616,2]
[314825172,1708571456105,-1331.83,0.00035616,2]
[314825173,1708571456114,-1153.25,0.00035616,2]
[314825174,1708571456124,-500.0,0.00035616,2]
[314825175,1708571456133,-500.0,0.00035616,2]
[314825176,1708571456142,-500.0,0.00035616,2]
[314825177,1708571456151,-500.0,0.00035616,2]
[314825178,1708571456160,-500.0,0.00035616,2]
[314825179,1708571456170,-500.0,0.00035616,2]
[314825180,1708571456179,-524.8661905,0.00035616,2]
[314825181,1708571456188,-504.27890627,0.00035616,2]
[314825182,1708571456197,-519.34928837,0.00035616,2]
[314825183,1708571456206,-1825.02,0.00035616,2]
[314825184,1708571456215,-1481.34,0.00035616,2]
[314825185,1708571456225,-905.27,0.00035616,2]
[314825186,1708571456234,-500.0,0.00035616,2]
[314825187,1708571456243,-500.0,0.00035616,2]
[314825188,1708571456253,-500.0,0.00035616,2]
[314825189,1708571456263,-500.0,0.00035616,2]
[314825190,1708571456272,-500.0,0.00035616,2]
[314825191,1708571456281,-500.0,0.00035616,2]
[314825192,1708571456290,-500.0,0.00035616,2]
[314825193,1708571456299,-500.0,0.00035616,2]
[314825194,1708571456308,-150.0,0.00035616,2]
[314825195,1708571456318,-9540.98,0.00035616,2]
[314825196,1708571456327,-500.0,0.00035616,2]
[314825197,1708571456336,-500.0,0.00035616,2]
[314825198,1708571456346,-241.21,0.00035616,2]
[314825199,1708571456356,-500.0,0.00035616,2]
[314825200,1708571456365,-500.0,0.00035616,2]
[314825201,1708571456374,-500.0,0.00035616,2]
[314825202,1708571456384,-500.0,0.00035616,2]
[314825203,1708571456393,-500.0,0.00035616,2]
[314825204,1708571456403,-1233.59,0.00035616,2]
[314825205,1708571456412,-3195.85,0.00035616,2]
[314825206,1708571456422,-500.0,0.00035616,2]
[314825207,1708571456430,-500.0,0.00035616,2]
[314825208,1708571456440,-818.0,0.00035616,2]
[314825209,1708571456449,-500.0,0.00035616,2]
[314825210,1708571456459,-500.0,0.00035616,2]
[314825211,1708571456468,-500.0,0.00035616,2]
[314825212,1708571456478,-8159.8,0.00035616,2]
[314825213,1708571456488,-500.0,0.00035616,2]
[314825214,1708571456498,-3562.02,0.00035616,2]
[314825215,1708571456507,-500.0,0.00035616,2]
[314825216,1708571456517,-500.0,0.00035616,2]
[314825217,1708571456527,-756.65,0.00035616,2]
[314825218,1708571456537,-500.0,0.00035616,2]
[314825219,1708571456546,-500.0,0.00035616,2]
[314825220,1708571456556,-500.0,0.00035616,2]
[314825221,1708571456565,-500.0,0.00035616,2]
[314825222,1708571456574,-512.64647934,0.00035616,2]
[314825223,1708571456584,-500.0,0.00035616,2]
[314825224,1708571456594,-500.0,0.00035616,2]
[314825225,1708571456604,-500.0,0.00035616,2]
[314825226,1708571456616,-1097.81,0.00035616,2]
[314825227,1708571456625,-500.0,0.00035616,2]
[314825228,1708571456634,-500.0,0.00035616,2]
[314825229,1708571456644,-500.0,0.00035616,2]
[314825230,1708571456653,-1046.88,0.00035616,2]
[314825231,1708571456663,-500.0,0.00035616,2]
[314825232,1708571456672,-1760.89,0.00035616,2]
[314825233,1708571456681,-633.91,0.00035616,2]
[314825234,1708571456691,-500.0,0.00035616,2]
[314825235,1708571456700,-501.57,0.00035616,2]
[314825236,1708571456710,-5083.41462713,0.00035616,2]
[314825237,1708571456719,-7057.18,0.00035616,2]
[314825238,1708571456728,-3877.71,0.00035616,2]
[314825239,1708571456738,-3730.63,0.00035616,2]
[314825240,1708571456748,-797.35,0.00035616,2]
[314825241,1708571456757,-500.0,0.00035616,2]
[314825242,1708571456767,-589.83,0.00035616,2]
[314825243,1708571456776,-500.0,0.00035616,2]
[314825244,1708571456785,-500.0,0.00035616,2]
[314825245,1708571456794,-1003.08,0.00035616,2]
[314825246,1708571456803,-500.0,0.00035616,2]
[314825247,1708571456813,-500.0,0.00035616,2]
[314825248,1708571456822,-500.0,0.00035616,2]
[314825249,1708571456831,-542.91,0.00035616,2]
[314825250,1708571456840,-500.0,0.00035616,2]
[314825251,1708571456849,-500.0,0.00035616,2]
[314825252,1708571456858,-622.76,0.00035616,2]
[314825253,1708571456866,-500.0,0.00035616,2]
[314825254,1708571456876,-500.0,0.00035616,2]
[314825255,1708571456885,-500.0,0.00035616,2]
[314825256,1708571456895,-500.0,0.00035616,2]
[314825257,1708571456904,-500.0,0.00035616,2]
[314825258,1708571456913,-500.0,0.00035616,2]
[314825259,1708571456922,-500.0,0.00035616,2]
[314825260,1708571456931,-4861.35,0.00035616,2]
[314825261,1708571456941,-500.0,0.00035616,2]
[314825262,1708571456950,-500.0,0.00035616,2]
[314825263,1708571456959,-930.1,0.00035616,2]
[314825264,1708571456968,-553.37,0.00035616,2]
[314825265,1708571456976,-500.0,0.00035616,2]
[314825266,1708571456986,-500.0,0.00035616,2]
[314825267,1708571456995,-500.0,0.00035616,2]
[314825268,1708571457004,-3412.21,0.00035616,2]
[314825269,1708571457014,-500.0,0.00035616,2]
[314825270,1708571457023,-500.0,0.00035616,2]
[314825271,1708571457032,-9518.08,0.00035616,2]
[314825272,1708571457041,-500.0,0.00035616,2]
[314825273,1708571457051,-500.0,0.00035616,2]
[314825274,1708571457061,-500.0,0.00035616,2]
[314825275,1708571457070,-500.0,0.00035616,2]
[314825276,1708571457079,-500.0,0.00035616,2]
[314825277,1708571457087,-500.0,0.00035616,2]
[314825278,1708571457097,-1168.72,0.00035616,2]
[314825279,1708571457106,-500.0,0.00035616,2]
[314825280,1708571457115,-500.0,0.00035616,2]